bitfinex/quotes_ETHUSD_20260125
["timestamp","ask_amount","ask_price","bid_price","bid_amount"]
[1769358744538,2.584482,2888.7,2887.1,0.86590162]
[1769358744733,3.44992837,2888.7,2887.0,13.32905182]
[1769358745037,0.41749284,2888.6,2887.0,0.86594102]
[1769358745224,13.743179,2888.7,2886.9,1.59297618]
[1769358745421,13.743179,2888.7,2886.9,0.002]
[1769358745804,31.67722767,2888.6,2886.9,0.002]
[1769358746006,18.738225,2888.5,2886.9,0.002]
[1769358746535,12.93900267,2888.6,2886.9,0.002]
[1769358746536,0.725,2888.6,2887.0,12.46311515]
[1769358746753,0.725,2888.6,2887.0,13.32905951]
[1769358747235,0.95176391,2889.2,2887.0,13.32905951]
[1769358747532,0.725,2889.0,2887.0,13.32905951]
[1769358748057,14.696268,2888.9,2887.0,13.32905951]
[1769358748229,10.729195,2888.9,2887.0,13.32905951]
[1769358748433,1.1454195,2888.8,2887.0,13.32905951]
[1769358748637,0.725,2888.8,2887.0,13.32905951]
[1769358748947,0.725,2888.9,2887.0,13.32905951]
[1769358749152,10.773467,2888.8,2887.0,13.32905951]
[1769358749325,6.623842,2888.8,2887.0,13.32905951]
[1769358749520,6.623842,2888.8,2887.0,12.46311515]
[1769358749748,4.146183,2888.6,2887.1,0.725]
[1769358749955,18.2787228,2888.2,2886.9,0.002]
[1769358750259,7.900015,2887.7,2886.6,0.002]
[1769358750425,6.654207,2887.5,2886.6,0.002]
[1769358750626,19.67967447,2887.5,2885.5,0.002]
[1769358750937,15.517151,2887.2,2885.5,0.002]
[1769358751123,0.725,2887.1,2885.5,0.002]
[1769358751320,12.93900267,2887.5,2885.5,0.002]
[1769358751519,2.09876507,2887.4,2885.5,12.46511515]
[1769358751779,0.725,2887.4,2885.5,12.46511515]
[1769358752252,0.725,2887.3,2885.5,12.46511515]
[1769358752453,2.577773,2887.2,2885.5,12.46511515]
[1769358752825,2.577773,2887.2,2885.6,0.86637094]
[1769358753030,0.79864798,2887.6,2885.6,13.31985118]
[1769358753230,0.725,2887.4,2885.8,12.36701544]
[1769358753429,0.0864648,2888.4,2886.2,12.36701544]
[1769358753430,0.725,2888.0,2886.2,12.36701544]
[1769358753630,8.239401,2887.9,2886.3,13.09201544]
[1769358753826,0.725,2888.0,2886.3,13.09201544]
[1769358754059,16.837839,2887.9,2885.7,12.36701544]
[1769358754333,9.346411,2887.7,2885.7,13.09201544]
[1769358754468,0.725,2887.6,2885.7,13.09201544]
[1769358754638,0.0864648,2888.2,2885.8,12.45348024]
[1769358754838,0.725,2887.8,2885.8,12.36701544]
[1769358755066,0.0864648,2888.2,2885.8,12.36701544]
[1769358755067,0.86567868,2888.0,2885.9,13.23329632]
[1769358755267,0.725,2887.9,2885.9,13.23329632]
[1769358755845,0.86565165,2888.0,2885.9,13.23329632]
[1769358755846,0.725,2888.0,2885.9,13.23329632]
[1769358756667,0.725,2888.0,2886.1,12.36701544]
[1769358757068,5.79042,2887.9,2886.2,0.86619083]
[1769358757273,16.68019015,2887.9,2885.8,0.86628967]
[1769358757476,12.86777015,2887.6,2885.9,0.002]
[1769358757659,11.763547,2887.5,2885.9,0.002]
[1769358758098,27.386295,2887.4,2885.9,0.002]
[1769358758377,12.95423495,2887.5,2885.6,0.002]
[1769358758378,30.0,2887.0,2885.6,0.002]
[1769358758545,18.021489,2886.8,2885.6,0.002]
[1769358758966,28.5775088,2886.7,2885.5,0.002]
[1769358759168,19.261165,2886.6,2884.5,13.23570066]
[1769358759451,19.259779,2886.5,2884.5,13.23570066]
[1769358759668,13.19895,2886.4,2884.5,12.36901544]
[1769358759975,5.692984,2886.2,2884.5,0.002]
[1769358760175,2.980807,2886.0,2884.5,0.002]
[1769358761073,0.86628088,2885.9,2884.5,0.002]
[1769358761242,21.486522,2885.8,2884.5,0.002]
[1769358761447,18.954392,2885.8,2884.5,0.002]
[1769358761648,16.01703,2885.6,2884.5,0.002]
[1769358761853,30.0,2885.5,2884.3,1.23657099]
[1769358762194,9.586064,2885.5,2884.3,1.23657099]
[1769358762904,0.0864648,2885.6,2883.1,0.728]
[1769358762905,0.0864648,2885.1,2883.1,0.002]
[1769358763071,7.25667771,2884.9,2883.1,0.002]
[1769358763388,0.79826777,2884.8,2883.1,0.002]
[1769358763769,6.552721,2884.9,2883.1,0.002]
[1769358763995,0.0864648,2885.2,2883.7,12.36701544]
[1769358764154,0.0864648,2885.0,2883.7,12.36701544]
[1769358764357,3.216363,2885.2,2883.7,12.36701544]
[1769358764586,0.41674758,2885.1,2883.7,12.36701544]
[1769358764789,0.0864648,2885.1,2883.7,12.36701544]
[1769358765288,0.0864648,2885.3,2883.8,13.23392715]
[1769358765617,0.8124648,2886.2,2883.8,13.23392715]
[1769358765895,0.0864648,2885.8,2884.0,12.36701544]
[1769358766790,0.0864648,2885.6,2884.1,0.726]
[1769358767100,0.0864648,2885.6,2884.2,0.86679148]
[1769358767593,0.0834648,2885.6,2884.2,0.86679148]
[1769358767794,0.0864648,2885.4,2884.1,0.86680049]
[1769358767998,0.0864648,2885.2,2884.1,1.59281818]
[1769358768313,0.0864648,2885.0,2883.8,0.86689501]
[1769358768595,0.0864648,2885.0,2883.9,0.86688162]
[1769358768794,0.0864648,2885.0,2884.0,0.86684351]
[1769358769009,0.0864648,2885.3,2884.0,0.86883974]
[1769358769210,0.0864648,2885.1,2884.0,0.002]
[1769358769369,0.0864648,2884.9,2884.0,0.002]
[1769358769574,0.0864648,2885.0,2884.0,0.002]
[1769358769783,0.0864648,2884.8,2884.0,0.002]
[1769358769981,0.0864648,2885.2,2884.0,0.002]
[1769358772205,0.0864648,2885.4,2884.0,0.002]
[1769358772387,0.0864648,2885.4,2884.0,12.36901544]
[1769358773303,0.0864648,2885.4,2884.1,0.86682153]
[1769358773606,0.0864648,2885.4,2884.2,0.726]
[1769358774712,0.0864648,2885.4,2884.1,0.86682153]
[1769358774915,0.0864648,2885.4,2884.3,0.726]
[1769358775820,0.0864648,2885.0,2884.0,12.36901544]
[1769358776110,0.0864648,2885.0,2884.1,1.59281856]
[1769358776288,0.0864648,2885.0,2884.2,0.86678577]
[1769358776474,0.0864648,2885.0,2884.2,0.86676998]
[1769358776671,0.0864648,2885.4,2884.3,0.86674487]
[1769358777100,0.0864648,2885.4,2884.2,0.8667718]
[1769358777330,0.0864648,2885.4,2884.2,3.46714617]
[1769358777722,0.0864648,2885.4,2884.2,15.83416161]
[1769358778137,0.0864648,2885.4,2884.3,12.36701544]
[1769358779335,0.0864648,2885.4,2884.4,0.86673138]
[1769358779747,3.0,2885.0,2884.3,13.2337562]
[1769358779904,3.0,2885.0,2884.4,0.726]
[1769358780740,0.0864648,2885.9,2884.4,0.726]
[1769358780925,0.0864648,2885.3,2884.0,3.46937168]
[1769358781239,0.0864648,2885.1,2884.2,0.002]
[1769358781741,0.0864648,2884.9,2884.2,0.002]
[1769358782435,12.86777015,2885.4,2884.2,0.002]
[1769358782635,1.2954235,2885.3,2884.2,0.03667165]
[1769358782843,0.0864648,2885.5,2884.2,0.002]
[1769358783407,0.0864648,2886.1,2884.3,13.29090435]
[1769358783634,0.0864648,2886.1,2884.4,13.15014292]
[1769358785138,0.0864648,2886.1,2884.5,0.726]
[1769358785139,0.0864648,2885.9,2884.5,0.726]
[1769358785518,0.0864648,2885.2,2884.2,0.002]
[1769358785721,0.0864648,2885.0,2884.2,0.002]
[1769358785919,0.0864648,2885.0,2884.0,0.002]
[1769358786252,8.560038,2884.9,2884.0,0.002]
[1769358786421,3.348553,2884.9,2884.0,0.002]
[1769358786610,0.0864648,2885.0,2884.0,0.002]
[1769358786611,0.0864648,2884.8,2884.0,0.002]
[1769358787256,0.0864648,2884.8,2883.3,3.4682413]
[1769358787257,0.0864648,2884.8,2883.3,0.86704189]
[1769358787418,0.0864648,2884.8,2883.4,0.86703017]
[1769358787613,0.0864648,2884.8,2883.3,0.86706204]
[1769358789335,0.8124648,2884.8,2883.3,0.86706204]
[1769358789513,0.0864648,2884.6,2883.1,0.002]
[1769358789718,0.726,2884.6,2883.1,0.002]
[1769358790043,0.726,2884.7,2883.2,12.42414292]
[1769358790247,0.0864648,2884.8,2883.2,12.42414292]
[1769358790918,0.0864648,2885.4,2883.6,12.42414292]
[1769358791120,0.0864648,2885.9,2883.9,12.42414292]
[1769358791545,0.0864648,2885.9,2884.0,0.86685159]
[1769358791843,0.0864648,2885.9,2884.1,12.42414292]
[1769358792657,0.0864648,2885.9,2884.3,12.42414292]
[1769358792854,0.0864648,2885.9,2884.4,0.03460205]
[1769358793058,0.8124648,2886.1,2884.3,12.42414292]
[1769358793255,0.001,2885.9,2884.3,12.42414292]
[1769358793433,0.001,2885.9,2884.4,0.03466925]
[1769358793623,0.001,2885.9,2884.4,0.86673138]
[1769358794263,12.90682011,2885.9,2884.4,0.86673138]
[1769358794427,0.0864648,2885.6,2884.3,0.86674258]
[1769358795363,0.001,2885.9,2884.3,0.86674258]
[1769358795678,0.0864648,2885.8,2884.3,0.86674258]
[1769358796031,0.0864648,2885.8,2883.8,0.002]
[1769358796032,0.0864648,2884.8,2883.8,0.002]
[1769358796233,1.79839188,2884.7,2883.8,0.002]
[1769358796433,0.8124648,2885.0,2883.8,0.002]
[1769358796434,0.726,2885.0,2883.8,0.002]
[1769358797323,0.0864648,2884.7,2883.8,0.002]
[1769358798557,0.0864648,2884.8,2883.8,0.002]
[1769358800167,0.0864648,2884.8,2883.2,1.59309136]
[1769358800168,5.963031,2884.9,2883.2,0.8670902]
[1769358800332,1.78475745,2884.8,2883.2,12.6863716]
[1769358800534,0.726,2884.9,2883.2,12.6863716]
[1769358800735,0.0864648,2885.0,2883.2,12.6863716]
[1769358800932,7.083664,2884.9,2883.2,12.6863716]
[1769358801457,0.0864648,2885.0,2883.4,11.8192814]
[1769358802037,0.0864648,2885.0,2883.6,11.8192814]
[1769358803259,0.0864648,2885.0,2883.4,0.86701438]
[1769358803438,0.95303039,2885.0,2883.3,1.59304587]
[1769358803636,2.108,2884.7,2883.1,11.8212814]
[1769358803834,0.0864648,2884.6,2883.1,11.8212814]
[1769358804065,0.0864648,2884.4,2883.1,0.002]
[1769358804384,1.43711138,2884.3,2883.1,0.002]
[1769358804671,0.726,2884.3,2883.1,0.002]
[1769358804972,0.0864648,2884.4,2883.1,0.002]
[1769358804973,0.0864648,2884.4,2883.6,0.002]
[1769358805144,0.95285309,2885.6,2883.6,0.002]
[1769358805332,0.95285309,2885.6,2883.8,11.8192814]
[1769358805333,0.0864648,2885.2,2883.8,11.8192814]
[1769358805534,0.001,2884.8,2883.8,11.8192814]
[1769358805843,0.0864648,2885.6,2883.8,11.8192814]
[1769358806042,0.0864648,2885.6,2884.0,11.8192814]
[1769358806260,0.0864648,2885.0,2883.8,0.86689237]
[1769358806568,0.0864648,2884.8,2883.7,1.59292334]
[1769358806774,0.0864648,2884.8,2883.7,1.59292479]
[1769358807236,0.0864648,2884.8,2883.8,0.86691153]
[1769358807541,0.0864648,2884.8,2883.7,0.726]
[1769358807740,0.0864648,2884.8,2883.8,0.86690426]
[1769358807946,0.0864648,2884.8,2883.7,0.726]
[1769358809254,0.0864648,2885.2,2883.7,12.5452814]
[1769358810270,0.0864648,2885.2,2883.9,11.8192814]
[1769358810476,0.001,2885.9,2883.9,11.8192814]
[1769358810477,0.0874648,2885.9,2883.9,11.8192814]
[1769358810639,0.0864648,2885.5,2883.9,11.8192814]
[1769358811341,0.0864648,2885.3,2883.9,11.8192814]
[1769358811542,0.0864648,2885.1,2883.9,11.8192814]
[1769358811743,0.0864648,2884.9,2884.0,0.726]
[1769358812868,0.0864648,2884.9,2884.1,0.86682153]
[1769358813185,0.0864648,2885.3,2884.1,0.86682153]
[1769358813877,0.0864648,2884.9,2884.0,1.59282918]
[1769358814796,0.0864648,2884.9,2884.0,0.86682918]
[1769358815559,0.0864648,2885.7,2884.0,13.45603707]
[1769358815764,0.0864648,2885.5,2884.0,13.45603707]
[1769358816175,0.0864648,2884.5,2883.9,0.8668622]
[1769358816766,0.0864648,2884.5,2883.8,0.726]
[1769358816767,0.0864648,2884.3,2883.8,0.726]
[1769358816978,0.0864648,2884.1,2883.6,0.86896865]
[1769358817313,0.0864648,2884.1,2883.6,0.50850598]
[1769358817493,0.0864648,2884.9,2883.6,0.002]
[1769358817670,0.0864648,2884.5,2883.6,0.002]
[1769358817860,0.0864648,2884.3,2883.6,0.002]
[1769358818072,0.0864648,2884.0,2883.6,0.002]
[1769358818271,0.0864648,2884.0,2883.4,0.002]
[1769358818272,0.0864648,2884.2,2883.4,0.002]
[1769358818489,0.0864648,2884.0,2883.4,0.002]
[1769358819098,0.0864648,2884.4,2883.4,0.002]
[1769358819471,0.0864648,2884.0,2883.4,0.002]
[1769358819668,0.0864648,2884.0,2883.1,0.002]
[1769358819669,0.0864648,2883.5,2883.1,0.002]
[1769358820377,0.0864648,2883.7,2883.1,0.002]
[1769358820568,0.0864648,2884.0,2883.1,0.002]
[1769358821204,0.0864648,2883.8,2883.1,0.002]
[1769358822116,0.0864648,2883.8,2882.2,0.002]
[1769358822117,0.0864648,2882.9,2882.2,0.002]
[1769358822999,0.0864648,2883.2,2882.2,0.03669571]
[1769358823305,0.0864648,2883.4,2882.2,0.002]
[1769358823470,0.0864648,2882.5,2882.2,0.002]
[1769358823677,11.92719818,2882.5,2880.8,3.47123363]
[1769358823878,1.19271982,2882.4,2881.1,0.86771756]
[1769358824191,1.19271982,2882.4,2880.9,12.93633125]
[1769358824391,0.726,2883.2,2881.2,0.86766549]
[1769358824595,15.29284818,2883.1,2881.4,0.86760749]
[1769358824794,4.847193,2883.0,2881.3,0.86764452]
[1769358825013,4.847193,2883.0,2881.2,3.47077299]
[1769358825222,4.847193,2883.0,2880.9,0.34712336]
[1769358825223,11.92719818,2882.9,2880.9,0.34712336]
[1769358825520,11.92719818,2882.9,2880.0,3.47221269]
[1769358825521,6.597117,2882.7,2881.0,0.86773718]
[1769358825753,18.52431518,2882.7,2880.5,12.58920789]
[1769358826008,22.04338,2882.5,2880.8,3.47124957]
[1769358826209,11.92719818,2882.6,2881.1,0.86772245]
[1769358826509,12.65319818,2882.6,2881.1,0.86772245]
[1769358826695,12.65319818,2882.6,2880.6,12.58920789]
[1769358826899,0.727,2882.5,2881.0,0.86773003]
[1769358827102,1.26541982,2882.4,2880.7,0.86784462]
[1769358827433,1.26541982,2882.4,2880.7,13.45705251]
[1769358827610,21.28513818,2882.3,2880.5,0.86788172]
[1769358827788,11.92719818,2882.3,2880.6,0.86787204]
[1769358828112,11.92719818,2882.1,2880.4,0.86791448]
[1769358828411,11.92719818,2881.9,2879.9,13.33663029]
[1769358828617,11.92719818,2881.9,2880.4,0.86793485]
[1769358828911,11.92719818,2881.9,2879.9,16.80892902]
[1769358828912,1.2740663,2881.8,2879.9,16.80892902]
[1769358829214,0.727,2881.7,2880.7,0.002]
[1769358829378,1.2740663,2881.8,2880.7,0.002]
[1769358829709,0.727,2881.9,2880.7,0.002]
[1769358830088,11.92719818,2882.1,2880.7,0.002]
[1769358830417,2.1968,2882.5,2880.7,12.59120789]
[1769358830598,0.0864648,2882.9,2880.7,12.59120789]
[1769358830599,0.727,2882.7,2880.7,12.59120789]
[1769358830771,17.70806,2882.6,2880.7,12.59120789]
[1769358830972,1.843506,2882.5,2880.9,12.58920789]
[1769358831175,0.727,2882.8,2880.9,12.58920789]
[1769358831176,7.373753,2882.7,2880.9,12.58920789]
[1769358831479,11.92719818,2883.4,2881.3,12.58920789]
[1769358831691,0.727,2883.3,2881.3,13.31620789]
[1769358832173,0.0864648,2883.7,2881.3,13.31620789]
[1769358832380,11.92719818,2883.9,2881.9,12.58920789]
[1769358832586,1.19271982,2883.8,2882.0,12.58920789]
[1769358833108,1.19271982,2883.8,2882.1,0.86742305]
[1769358833349,1.19271982,2883.8,2882.1,14.18363094]
[1769358833513,11.92719818,2884.4,2882.3,12.58920789]
[1769358833692,0.727,2884.3,2882.3,12.58920789]
[1769358833889,2.914671,2884.2,2882.3,12.58920789]
[1769358834608,2.294494,2884.2,2882.3,12.58920789]
[1769358834810,0.727,2884.3,2882.4,0.727]
[1769358835016,1.26541982,2884.2,2882.5,0.86730268]
[1769358835378,1.99241982,2884.2,2882.5,0.86730268]
[1769358835627,1.26541982,2884.2,2882.7,4.23673832]
[1769358835782,0.001,2884.7,2882.7,16.82594621]
[1769358835983,0.001,2884.7,2882.7,12.58920789]
[1769358836383,0.001,2884.7,2882.8,12.58920789]
[1769358836601,0.001,2884.7,2882.9,0.0864648]
[1769358836807,0.001,2884.7,2883.2,12.58920789]
[1769358836996,0.001,2884.7,2883.4,0.86703197]
[1769358837930,0.001,2884.7,2883.4,13.45623986]
[1769358838398,0.727,2885.8,2883.7,4.23673832]
[1769358838596,0.727,2885.8,2883.5,12.67567269]
[1769358838798,1.26551982,2885.7,2883.8,4.23673832]
[1769358839120,1.26551982,2885.7,2883.6,0.86697184]
[1769358839423,13.192718,2885.7,2883.7,0.727]
[1769358840523,1.26551982,2885.7,2883.8,12.67567269]
[1769358840696,0.727,2885.8,2883.8,16.91241101]
[1769358841084,0.727,2885.8,2883.9,13.45608954]
[1769358841289,0.001,2884.5,2883.9,13.45608954]
[1769358841525,0.727,2885.8,2883.9,13.45608954]
[1769358841729,0.001,2885.9,2884.0,0.0864648]
[1769358841930,0.001,2885.9,2883.9,13.54255434]
[1769358842383,0.001,2885.9,2884.1,0.0864648]
[1769358842585,0.001,2885.9,2883.9,13.54255434]
[1769358842787,0.001,2885.9,2884.1,0.0864648]
[1769358843093,0.001,2885.9,2884.2,0.86679148]
[1769358843423,0.001,2885.9,2884.3,0.44204222]
[1769358843624,0.001,2885.9,2884.4,0.727]
[1769358844626,12.15245459,2886.6,2884.5,13.06939066]
[1769358844925,12.15245459,2887.2,2885.1,0.0864648]
[1769358845222,1.21177546,2887.1,2885.6,4.58645283]
[1769358845419,0.001,2887.5,2885.6,17.56937869]
[1769358845620,0.001,2887.5,2886.2,4.58645283]
[1769358845787,0.001,2887.5,2886.3,0.726]
[1769358845994,0.001,2887.5,2886.4,0.726]
[1769358846192,0.001,2887.5,2885.7,12.98292586]
[1769358846397,0.001,2887.5,2885.3,0.86646102]
[1769358846398,12.23891939,2887.4,2885.8,0.726]
[1769358846918,0.001,2887.5,2885.8,13.70892586]
[1769358847126,0.001,2887.5,2885.9,0.86628088]
[1769358848027,0.70533809,2885.9,2883.2,3.55477724]
[1769358848348,0.49627421,2886.2,2884.8,0.0864648]
[1769358848521,0.49627421,2886.2,2884.5,4.67291763]
[1769358848522,0.726,2886.5,2884.5,17.65584349]
[1769358848724,0.726,2886.5,2884.5,4.58645283]
[1769358849087,12.842591,2886.9,2884.6,0.86667128]
[1769358849287,0.726,2886.4,2884.6,0.86667128]
[1769358849493,2.5860997,2886.8,2884.6,0.95313608]
[1769358849726,0.726,2886.7,2884.6,0.95313608]
[1769358850025,12.15245459,2886.8,2884.8,0.0864648]
[1769358850224,12.15245459,2886.8,2884.9,0.0864648]
[1769358850397,1.21524546,2886.7,2884.9,0.0864648]
[1769358851224,1.21524546,2886.7,2885.0,0.86655112]
[1769358851592,13.36770005,2886.7,2885.0,0.86655112]
[1769358853417,13.36770005,2886.7,2884.7,0.002]
[1769358853635,0.726,2886.6,2884.8,0.0864648]
[1769358853847,1.40937001,2886.5,2884.8,0.0864648]
[1769358854012,1.40937001,2886.5,2884.9,0.0864648]
[1769358854342,0.726,2886.6,2884.9,0.0864648]
[1769358854547,12.15345459,2887.2,2885.1,17.65584349]
[1769358854721,0.726,2887.1,2885.1,17.65584349]
[1769358854930,12.35502555,2886.9,2884.7,0.002]
[1769358855435,12.35502555,2886.9,2884.9,0.86658116]
[1769358855756,12.35502555,2886.6,2884.8,0.86659036]
[1769358856043,12.35502555,2886.4,2884.8,0.86659036]
[1769358856351,13.08102555,2886.3,2884.7,0.86864011]
[1769358856643,13.08102555,2886.3,2884.8,0.86660505]
[1769358856844,1.30810256,2886.2,2884.8,0.86660505]
[1769358857046,2.03410256,2886.2,2884.8,0.86660505]
[1769358857417,1.30810256,2886.2,2884.7,3.46853592]
[1769358857639,0.726,2886.6,2884.7,3.46853592]
[1769358857956,0.726,2886.6,2884.8,0.0864648]
[1769358858755,13.08102555,2886.6,2884.7,3.55500072]
[1769358859115,13.08102555,2886.6,2884.9,0.0864648]
[1769358859455,13.08102555,2886.6,2884.7,3.55500072]
[1769358859456,1.23550256,2886.8,2885.3,0.86646102]
[1769358859751,13.08102555,2887.1,2885.4,1.16787699]
[1769358860442,12.35502555,2887.0,2885.4,1.16787699]
[1769358861748,12.35502555,2887.0,2885.0,3.4658441]
[1769358861749,12.44149035,2886.8,2884.7,0.002]
[1769358861913,12.35502555,2886.4,2884.8,0.86661029]
[1769358862115,12.35502555,2886.2,2884.8,0.86661029]
[1769358862349,13.66312811,2886.1,2884.8,0.86661029]
[1769358862549,0.726,2886.0,2884.8,0.86661029]
[1769358863236,13.66312811,2886.1,2884.7,0.86862215]
[1769358863440,0.726,2886.0,2884.7,0.86862215]
[1769358863944,0.726,2886.0,2884.7,0.86862071]
[1769358864148,2.16491281,2885.9,2884.7,0.86862071]
[1769358864759,14.51993836,2885.9,2884.7,0.002]
[1769358865050,14.51993836,2885.9,2884.5,0.002]
[1769358865051,12.35502555,2885.5,2884.5,0.002]
[1769358865259,12.35502555,2885.3,2883.3,0.002]
[1769358865447,12.35502555,2885.1,2883.3,0.002]
[1769358865751,12.35502555,2884.9,2883.3,0.002]
[1769358865951,12.35502555,2884.7,2883.3,0.002]
[1769358866118,0.726,2884.6,2883.3,0.002]
[1769358866320,9.001097,2885.1,2883.3,0.002]
[1769358866557,0.726,2884.7,2883.3,0.002]
[1769358866735,12.35502555,2885.2,2883.3,4.58845283]
[1769358867048,0.726,2885.1,2883.3,0.002]
[1769358867453,12.35502555,2885.2,2883.4,0.0864648]
[1769358867620,1.96150256,2885.1,2883.4,0.0864648]
[1769358867956,0.726,2885.2,2883.5,0.0864648]
[1769358868342,12.35502555,2885.7,2883.9,0.0864648]
[1769358868542,12.35502555,2885.7,2883.7,4.67291763]
[1769358868543,13.08102555,2885.7,2884.0,0.0864648]
[1769358869029,0.726,2885.7,2884.0,0.0864648]
[1769358869855,0.726,2885.7,2884.1,0.86682153]
[1769358870051,0.726,2885.7,2884.2,0.44205725]
[1769358870875,0.726,2886.1,2884.3,4.67291763]
[1769358871028,12.35502555,2886.7,2884.5,0.0864648]
[1769358871227,12.35502555,2886.7,2884.7,0.0864648]
[1769358871622,0.726,2886.6,2884.7,0.0864648]
[1769358871826,0.726,2886.6,2884.2,13.32570736]
[1769358871827,0.0864648,2886.0,2884.2,0.44205725]
[1769358872062,0.0864648,2886.0,2883.3,0.002]
[1769358872063,12.35502555,2885.5,2883.3,0.002]
[1769358872265,13.08102555,2885.4,2883.5,3.46791988]
[1769358872465,13.08102555,2885.4,2884.0,0.86683081]
[1769358872664,13.08102555,2885.4,2883.5,3.46791988]
[1769358872665,13.08102555,2885.4,2884.1,0.86681956]
[1769358872829,1.30810256,2885.3,2884.1,0.86680679]
[1769358873031,12.35502555,2885.4,2884.5,0.86670087]
[1769358873252,0.726,2885.7,2884.5,0.86670087]
[1769358873561,13.32930107,2885.8,2884.5,0.86670087]
[1769358873870,0.726,2885.8,2884.5,0.86670087]
[1769358874154,0.726,2885.8,2884.2,3.46680533]
[1769358874355,0.726,2885.8,2884.3,0.43336269]
[1769358874755,22.45443007,2886.2,2884.3,0.43336269]
[1769358874961,0.726,2886.0,2884.3,0.43336269]
[1769358875459,12.60330107,2886.2,2884.3,0.43336269]
[1769358875660,12.60330107,2885.8,2884.1,0.86682153]
[1769358875869,12.60330107,2885.6,2884.1,0.86682153]
[1769358876158,12.60330107,2885.6,2883.9,0.86688165]
[1769358877034,0.726,2885.5,2883.9,0.86688165]
[1769358877223,1.33293011,2885.4,2884.0,0.50604083]
[1769358877556,2.05893011,2885.4,2884.0,0.50604083]
[1769358877860,12.60330107,2884.8,2883.6,0.86695948]
[1769358878036,0.0864648,2885.3,2883.3,0.002]
[1769358878037,13.32930107,2884.7,2883.3,0.002]
[1769358878358,13.93623118,2884.6,2883.3,0.002]
[1769358880337,1.33293011,2884.6,2883.3,0.002]
[1769358880536,2.19936188,2885.4,2883.3,0.002]
[1769358880537,1.33293011,2885.4,2883.3,11.88310334]
[1769358880757,13.32930107,2885.4,2883.3,11.88310334]
[1769358880958,12.60330107,2885.4,2883.4,0.0864648]
[1769358881358,13.32930107,2885.4,2883.3,11.88310334]
[1769358882160,13.32930107,2885.4,2883.6,0.86697184]
[1769358882360,13.32930107,2885.4,2883.6,1.59297184]
[1769358882361,2.0,2885.0,2883.6,1.59297184]
[1769358882564,2.0,2885.0,2883.7,0.5147324]
[1769358884064,12.60330107,2885.9,2883.8,0.0864648]
[1769358884361,12.60330107,2885.9,2883.9,0.86688165]
[1769358884572,0.726,2885.8,2883.9,0.86688165]
[1769358884750,2.05893011,2885.8,2884.0,0.44208731]
[1769358885142,12.60330107,2885.6,2884.0,0.44208731]
[1769358885342,12.60330107,2885.4,2884.1,0.00768422]
[1769358885665,12.60330107,2886.3,2884.5,4.58645283]
[1769358885878,12.60330107,2886.3,2884.2,11.88110334]
[1769358885879,0.726,2886.1,2884.2,11.88110334]
[1769358886066,0.726,2886.1,2884.3,0.86341471]
[1769358886253,0.726,2886.1,2884.4,0.86673138]
[1769358886637,12.60330107,2886.3,2884.4,0.86673138]
[1769358886833,0.726,2886.2,2884.4,0.86673138]
[1769358887441,0.726,2886.2,2884.3,1.64369031]
[1769358887442,12.60330107,2885.7,2884.3,1.64369031]
[1769358887637,15.16782268,2885.6,2884.3,1.64369031]
[1769358887864,15.16782268,2885.6,2884.3,1.64369859]
[1769358889776,15.16782268,2885.6,2884.4,0.002]
[1769358890169,14.44182268,2885.6,2884.5,0.86670133]
[1769358890372,0.726,2885.5,2884.6,0.00768287]
[1769358890701,2.24278227,2885.4,2884.7,0.00768127]
[1769358890901,14.84608334,2885.4,2884.4,0.002]
[1769358891057,12.60330107,2885.2,2884.4,0.002]
[1769358891253,12.60330107,2885.1,2884.4,0.002]
[1769358891869,0.0864648,2885.7,2884.4,0.86872064]
[1769358891870,12.60330107,2885.6,2884.4,0.86872064]
[1769358892179,0.726,2885.5,2884.4,0.8687147]
[1769358892386,2.05893011,2885.5,2884.4,0.002]
[1769358892598,14.66223118,2885.5,2884.4,0.002]
[1769358893561,13.93623118,2885.5,2884.4,0.002]
[1769358893760,12.60330107,2886.0,2884.4,0.002]
[1769358894150,13.32930107,2885.8,2884.4,0.002]
[1769358894352,12.60330107,2885.6,2884.4,0.002]
[1769358895101,0.726,2885.5,2884.4,0.002]
[1769358896273,0.726,2885.4,2884.4,0.002]
[1769358897597,0.726,2885.3,2884.4,0.002]
[1769358898463,12.60330107,2886.1,2884.4,0.002]
[1769358898795,0.726,2885.8,2884.4,0.002]
[1769358898983,12.60330107,2886.1,2884.4,0.002]
[1769358899184,0.726,2885.8,2884.5,0.45884528]
[1769358899592,12.60330107,2886.5,2884.5,0.45884528]
[1769358900105,0.727,2885.9,2884.5,0.45884528]
[1769358900715,0.726,2885.8,2884.6,0.86667128]
[1769358901905,0.95346575,2886.9,2885.0,0.0864648]
[1769358901906,12.60430107,2886.9,2885.0,0.0864648]
[1769358902211,12.60430107,2886.9,2885.4,4.58645283]
[1769358902212,0.001,2886.9,2885.4,4.58645283]
[1769358902417,12.60430107,2886.9,2885.5,0.45864528]
[1769358902714,0.726,2886.8,2885.3,0.86646102]
[1769358903080,0.001,2885.6,2885.3,0.86646102]
[1769358903279,12.96367563,2886.8,2885.3,0.86646102]
[1769358903475,12.23767563,2886.7,2885.3,0.86646102]
[1769358903911,12.24535705,2886.6,2885.3,0.86646102]
[1769358904110,1.22453571,2886.5,2885.4,0.43323051]
[1769358904496,12.23767563,2886.6,2885.4,0.43323051]
[1769358904706,12.23767563,2886.6,2885.5,0.86640097]
[1769358905089,0.726,2886.8,2884.4,0.002]
[1769358905090,12.23767563,2886.4,2884.4,0.002]
[1769358905425,12.23767563,2886.3,2885.2,0.8664744]
[1769358905604,0.0864648,2886.7,2885.2,0.8664744]
[1769358905605,12.23767563,2886.1,2885.2,0.8664744]
[1769358905937,1.22376756,2886.2,2884.7,0.86662319]
[1769358905938,12.97135705,2886.0,2884.7,0.86662319]
[1769358906094,12.96367563,2886.0,2884.7,0.86662319]
[1769358906288,12.23767563,2885.8,2884.7,0.86662319]
[1769358906608,12.23767563,2885.8,2884.7,0.86662678]
[1769358906796,12.23767563,2885.8,2884.5,0.002]
[1769358906998,1.22376756,2885.7,2884.5,0.34930074]
[1769358907727,1.22376756,2885.7,2884.5,0.002]